fUSD/lending_fUSD_20250616
["ID","MTS","AMOUNT","RATE_DAILY","PERIOD"]
[366188575,1750104658903,-490.0,0.00016156,2]
[366188576,1750104658912,-490.0,0.00016156,2]
[366188577,1750104658922,-490.0,0.00016156,2]
[366188578,1750104658931,-984.32,0.00016156,2]
[366188579,1750104658940,-490.0,0.00016156,2]
[366188580,1750104658950,-515.93,0.00016156,2]
[366188581,1750104658959,-1507.29,0.00016156,2]
[366188582,1750104658968,-940.17,0.00016156,2]
[366188583,1750104658978,-490.0,0.00016156,2]
[366188584,1750104658987,-490.0,0.00016156,2]
[366188585,1750104658997,-490.0,0.00016156,2]
[366188586,1750104659007,-594.65,0.00016156,2]
[366188587,1750104659016,-574.72,0.00016156,2]
[366188588,1750104659026,-1606.7,0.00016156,2]
[366188589,1750104659036,-7755.07,0.00016156,2]
[366188590,1750104659046,-490.0,0.00016156,2]
[366188591,1750104659055,-490.0,0.00016156,2]
[366188592,1750104659065,-490.0,0.00016156,2]
[366188593,1750104659075,-516.77,0.00016156,2]
[366188594,1750104659086,-490.0,0.00016156,2]
[366188595,1750104659095,-2924.91,0.00016156,2]
[366188596,1750104659105,-1557.21,0.00016156,2]
[366188597,1750104659115,-2844.63,0.00016156,2]
[366188598,1750104659126,-490.0,0.00016156,2]
[366188599,1750104659137,-576.19,0.00016156,2]
[366188600,1750104659147,-490.0,0.00016156,2]
[366188601,1750104659156,-490.0,0.00016156,2]
[366188602,1750104659166,-490.0,0.00016156,2]
[366188603,1750104659175,-2142.72,0.00016156,2]
[366188604,1750104659185,-517.99,0.00016156,2]
[366188605,1750104659195,-490.0,0.00016156,2]
[366188606,1750104659205,-3747.5,0.00016156,2]
[366188607,1750104659214,-5472.19,0.00016156,2]
[366188608,1750104659223,-490.0,0.00016156,2]
[366188609,1750104659232,-428.42351608,0.00016156,2]
[366188610,1750104659242,-3236.01,0.00016156,2]
[366188611,1750104659252,-1372.71,0.00016156,2]
[366188612,1750104659262,-490.0,0.00016156,2]
[366188613,1750104659271,-490.0,0.00016156,2]
[366188614,1750104659281,-614.91,0.00016156,2]
[366188615,1750104659291,-490.0,0.00016156,2]
[366188616,1750104659301,-200.0,0.00016157,2]
[366188617,1750104659311,-150.0,0.00016157,2]
[366188618,1750104659321,-200.0,0.00016157,2]
[366188619,1750104659331,-200.0,0.00016157,2]
[366188620,1750104659341,-183.0,0.00016157,2]
[366188621,1750104659351,-200.0,0.00016157,2]
[366188622,1750104659361,-200.0,0.00016157,2]
[366188623,1750104659371,-200.0,0.00016157,2]
[366188624,1750104659381,-200.0,0.00016157,2]
[366188625,1750104659392,-200.0,0.00016157,2]
[366188626,1750104659402,-491.07357929,0.00016157,2]
[366188627,1750104659413,-490.0,0.00016157,2]
[366188628,1750104659423,-490.0,0.00016157,2]
[366188629,1750104659432,-703.86,0.00016157,2]
[366188630,1750104659442,-659.31,0.00016157,2]
[366188631,1750104659452,-563.6,0.00016157,2]
[366188632,1750104659462,-617.31,0.00016157,2]
[366188633,1750104659471,-490.0,0.00016157,2]
[366188634,1750104659481,-836.34,0.00016157,2]
[366188635,1750104659491,-490.0,0.00016157,2]
[366188636,1750104659501,-490.0,0.00016157,2]
[366188637,1750104659511,-490.0,0.00016157,2]
[366188638,1750104659520,-631.58,0.00016157,2]
[366188639,1750104659530,-490.0,0.00016157,2]
[366188640,1750104659539,-490.0,0.00016157,2]
[366188641,1750104659550,-523.17,0.00016157,2]
[366188642,1750104659560,-641.57,0.00016157,2]
[366188643,1750104659570,-490.0,0.00016157,2]
[366188644,1750104659580,-490.0,0.00016157,2]
[366188645,1750104659590,-490.0,0.00016157,2]
[366188646,1750104659600,-490.0,0.00016157,2]
[366188647,1750104659610,-628.3,0.00016157,2]
[366188648,1750104659619,-490.0,0.00016157,2]
[366188649,1750104659629,-490.0,0.00016157,2]
[366188650,1750104659639,-649.97,0.00016157,2]
[366188651,1750104659650,-490.0,0.00016157,2]
[366188652,1750104659659,-607.43,0.00016157,2]
[366188653,1750104659669,-566.4,0.00016157,2]
[366188654,1750104659679,-490.0,0.00016157,2]
[366188655,1750104659690,-614.64,0.00016157,2]
[366188656,1750104659700,-490.0,0.00016157,2]
[366188657,1750104659709,-490.0,0.00016157,2]
[366188658,1750104659719,-576.73,0.00016157,2]
[366188659,1750104659729,-868.34,0.00016157,2]
[366188660,1750104659739,-490.0,0.00016157,2]
[366188661,1750104659749,-490.0,0.00016157,2]
[366188662,1750104659759,-529.35,0.00016157,2]
[366188663,1750104659769,-490.0,0.00016157,2]
[366188664,1750104659778,-618.0,0.00016157,2]
[366188665,1750104659787,-490.0,0.00016157,2]
[366188666,1750104659797,-621.34,0.00016157,2]
[366188667,1750104659810,-689.37,0.00016157,2]
[366188668,1750104659820,-494.88,0.00016157,2]
[366188669,1750104659829,-490.0,0.00016157,2]
[366188670,1750104659839,-490.0,0.00016157,2]
[366188671,1750104659849,-711.91,0.00016157,2]
[366188672,1750104659859,-490.0,0.00016157,2]
[366188673,1750104659869,-490.0,0.00016157,2]
[366188674,1750104659879,-490.0,0.00016157,2]
[366188675,1750104659891,-516.15,0.00016157,2]
[366188676,1750104659901,-640.62,0.00016157,2]
[366188677,1750104659911,-741.8,0.00016157,2]
[366188678,1750104659920,-829.01,0.00016157,2]
[366188679,1750104659930,-490.0,0.00016157,2]
[366188680,1750104659940,-490.0,0.00016157,2]
[366188681,1750104659950,-522.17,0.00016157,2]
[366188682,1750104659960,-490.0,0.00016157,2]
[366188683,1750104659970,-514.77,0.00016157,2]
[366188684,1750104659981,-563.82,0.00016157,2]
[366188685,1750104659991,-4603.81558669,0.00016157,2]
[366188686,1750104660001,-3324.75547722,0.00016157,2]
[366188687,1750104660012,-833.8156298,0.00016168,2]
[366188688,1750104660021,-252.74,0.00016184,2]
[366188689,1750104660031,-150.0,0.00016184,2]
[366188690,1750104660041,-151.30590679,0.00016184,2]
[366188691,1750104660051,-150.0,0.00016192,2]
[366188692,1750104660062,-341.64,0.00016192,2]
[366188693,1750104660072,-326.92,0.00016192,2]
[366188694,1750104660082,-300.0,0.00016192,2]
[366188695,1750104660092,-301.48,0.00016192,2]
[366188696,1750104660102,-150.0,0.00016192,2]
[366188697,1750104660111,-1164.67,0.00016192,2]
[366188698,1750104660121,-1164.67,0.00016192,2]
[366188699,1750104660131,-1164.67,0.00016192,2]
[366188700,1750104660141,-150.0,0.00016192,2]
[366188701,1750104660150,-170.78,0.00016192,2]
[366188702,1750104660160,-1164.67,0.00016192,2]
[366188703,1750104660169,-150.0,0.00016192,2]
[366188704,1750104660179,-150.0,0.00016192,2]
[366188705,1750104660189,-300.0,0.00016202,2]
[366188706,1750104660199,-545.96980815,0.0001621,2]
[366188707,1750104660209,-490.0,0.0001621,2]
[366188708,1750104660220,-490.0,0.0001621,2]
[366188709,1750104660229,-490.0,0.0001621,2]
[366188710,1750104660239,-490.0,0.0001621,2]
[366188711,1750104660249,-490.0,0.0001621,2]
[366188712,1750104660259,-490.0,0.0001621,2]
[366188713,1750104660268,-490.0,0.0001621,2]
[366188714,1750104660278,-490.0,0.0001621,2]
[366188715,1750104660287,-490.0,0.0001621,2]
[366188716,1750104660297,-490.0,0.0001621,2]
[366188717,1750104660306,-150.0,0.00016212,2]
[366188718,1750104660316,-200.0,0.00016239,2]
[366188719,1750104660326,-174.82431446,0.00016268,2]
[366188720,1750104660336,-162.45031758,0.00016274,2]
[366188721,1750104660347,-4603.81558669,0.00016306,2]
[366188722,1750104660358,-490.0,0.0001632,2]
[366188723,1750104660367,-222.8,0.0001632,2]
[366188724,1750104660377,-645.18,0.0001632,2]
[366188725,1750104660388,-651.62,0.0001632,2]
[366188726,1750104660401,-1053.330119,0.0001632,2]
[366188727,1750104660412,-562.92,0.0001632,2]
[366188728,1750104660423,-574.26,0.0001632,2]
[366188729,1750104660435,-1093.44,0.0001632,2]
[366188730,1750104660448,-1941.86,0.0001632,2]
[366188731,1750104660460,-643.88,0.0001632,2]
[366188732,1750104660473,-2719.56,0.0001632,2]
[366188733,1750104660485,-166.132104,0.0001632,2]
[366188734,1750104660496,-830.48,0.0001632,2]
[366188735,1750104660509,-1357.86,0.0001632,2]
[366188736,1750104660521,-906.95,0.0001632,2]
[366188737,1750104660534,-490.0,0.0001632,2]
[366188738,1750104660546,-490.0,0.0001632,2]
[366188739,1750104660558,-596.59,0.0001632,2]
[366188740,1750104660574,-1302.19,0.0001632,2]
[366188741,1750104660587,-498.26,0.0001632,2]
[366188742,1750104660600,-520.64,0.0001632,2]
[366188743,1750104660613,-3409.01,0.0001632,2]
[366188744,1750104660626,-490.0,0.0001632,2]
[366188745,1750104660637,-490.0,0.0001632,2]
[366188746,1750104660664,-1121.01,0.0001632,2]
[366188747,1750104660677,-490.0,0.0001632,2]
[366188748,1750104660690,-2152.11,0.0001632,2]
[366188749,1750104660838,-490.0,0.0001632,2]
[366188750,1750104660851,-490.0,0.0001632,2]
[366188751,1750104660863,-703.85,0.0001632,2]
[366188752,1750104660875,-490.0,0.0001632,2]
[366188753,1750104660886,-765.88,0.0001632,2]
[366188754,1750104660906,-1293.43,0.0001632,2]
[366188755,1750104660916,-490.0,0.0001632,2]
[366188756,1750104660926,-2680.03,0.0001632,2]
[366188757,1750104660936,-1123.57,0.0001632,2]
[366188758,1750104660946,-683.91,0.0001632,2]
[366188759,1750104660955,-496.21,0.0001632,2]
[366188760,1750104660965,-490.0,0.0001632,2]
[366188761,1750104660975,-1265.19,0.0001632,2]
[366188762,1750104660985,-1368.0,0.0001632,2]
[366188763,1750104660995,-151.0,0.0001632,2]
[366188764,1750104661005,-539.37,0.0001632,2]
[366188765,1750104661015,-151.0,0.0001632,2]
[366188766,1750104661025,-490.0,0.0001632,2]
[366188767,1750104661035,-1681.53,0.0001632,2]
[366188768,1750104661045,-490.0,0.0001632,2]
[366188769,1750104661055,-1900.07,0.0001632,2]
[366188770,1750104661065,-166.132103,0.0001632,2]
[366188771,1750104661074,-490.0,0.0001632,2]
[366188772,1750104661084,-490.0,0.0001632,2]
[366188773,1750104661094,-490.0,0.0001632,2]
[366188774,1750104661104,-984.88,0.0001632,2]
[366188775,1750104661114,-490.0,0.0001632,2]
[366188776,1750104661123,-1224.37,0.0001632,2]
[366188777,1750104661133,-151.0,0.0001632,2]
[366188778,1750104661149,-758.02,0.0001632,2]
[366188779,1750104661159,-762.72,0.0001632,2]
[366188780,1750104661169,-490.0,0.0001632,2]
[366188781,1750104661180,-2062.25,0.0001632,2]
[366188782,1750104661190,-490.0,0.0001632,2]
[366188783,1750104661200,-618.494544,0.0001632,2]
[366188784,1750104661210,-490.0,0.0001632,2]
[366188785,1750104661219,-3168.77,0.0001632,2]
[366188786,1750104661229,-490.0,0.0001632,2]
[366188787,1750104661239,-1028.44,0.0001632,2]
[366188788,1750104661249,-1220.65,0.0001632,2]
[366188789,1750104661259,-151.0,0.0001632,2]
[366188790,1750104661269,-490.0,0.0001632,2]
[366188791,1750104661278,-490.0,0.0001632,2]
[366188792,1750104661288,-164.62597117,0.0001632,2]
[366188793,1750104661298,-490.0,0.00016321,2]
[366188794,1750104661308,-490.0,0.00016321,2]
[366188795,1750104661318,-551.83759051,0.00016321,2]
[366188796,1750104661327,-490.0,0.00016321,2]
[366188797,1750104661337,-703.86,0.00016321,2]
[366188798,1750104661347,-659.31,0.00016321,2]
[366188799,1750104661358,-490.0,0.00016321,2]
[366188800,1750104661368,-490.0,0.00016321,2]
[366188801,1750104661378,-563.6,0.00016321,2]
[366188802,1750104661391,-617.31,0.00016321,2]
[366188803,1750104661401,-506.16,0.00016321,2]
[366188804,1750104661412,-490.0,0.00016321,2]
[366188805,1750104661421,-836.34,0.00016321,2]
[366188806,1750104661431,-490.0,0.00016321,2]
[366188807,1750104661441,-490.0,0.00016321,2]
[366188808,1750104661451,-490.0,0.00016321,2]
[366188809,1750104661462,-490.0,0.00016321,2]
[366188810,1750104661472,-490.0,0.00016321,2]
[366188811,1750104661481,-631.58,0.00016321,2]
[366188812,1750104661492,-490.0,0.00016321,2]
[366188813,1750104661501,-490.0,0.00016321,2]
[366188814,1750104661511,-490.0,0.00016321,2]
[366188815,1750104661522,-490.0,0.00016321,2]
[366188816,1750104661532,-523.17,0.00016321,2]
[366188817,1750104661542,-490.0,0.00016321,2]
[366188818,1750104661552,-490.0,0.00016321,2]
[366188819,1750104661562,-641.57,0.00016321,2]
[366188820,1750104661580,-490.0,0.00016321,2]
[366188821,1750104661590,-490.0,0.00016321,2]
[366188822,1750104661600,-490.0,0.00016321,2]
[366188823,1750104661610,-490.0,0.00016321,2]
[366188824,1750104661620,-698.25,0.00016321,2]
[366188825,1750104661630,-490.0,0.00016321,2]
[366188826,1750104661642,-276.67879553,0.00016321,2]
[366188827,1750104661652,-628.3,0.00016321,2]
[366188828,1750104661663,-490.0,0.00016321,2]
[366188829,1750104661673,-490.0,0.00016321,2]
[366188830,1750104661683,-546.01,0.00016321,2]
[366188831,1750104661692,-490.0,0.00016321,2]
[366188832,1750104661702,-490.0,0.00016321,2]
[366188833,1750104661712,-649.97,0.00016321,2]
[366188834,1750104661722,-490.0,0.00016321,2]
[366188835,1750104661732,-490.0,0.00016321,2]
[366188836,1750104661742,-494.84337502,0.00016321,2]
[366188837,1750104661752,-607.43,0.00016321,2]
[366188838,1750104661762,-527.47,0.00016321,2]
[366188839,1750104661772,-566.4,0.00016321,2]
[366188840,1750104661782,-490.0,0.00016321,2]
[366188841,1750104661792,-490.0,0.00016321,2]
[366188842,1750104661804,-490.0,0.00016321,2]
[366188843,1750104661814,-490.62,0.00016321,2]
[366188844,1750104661823,-614.64,0.00016321,2]
[366188845,1750104661833,-490.0,0.00016321,2]
[366188846,1750104661843,-490.0,0.00016321,2]
[366188847,1750104661853,-490.0,0.00016321,2]
[366188848,1750104661864,-490.0,0.00016321,2]
[366188849,1750104661873,-576.73,0.00016321,2]
[366188850,1750104661884,-868.34,0.00016321,2]
[366188851,1750104661898,-500.13,0.00016321,2]
[366188852,1750104661907,-747.73,0.00016321,2]
[366188853,1750104661917,-214.00079622,0.00016321,2]
[366188854,1750104661927,-490.0,0.00016321,2]
[366188855,1750104661936,-490.0,0.00016321,2]
[366188856,1750104661946,-600.61,0.00016321,2]
[366188857,1750104661955,-529.35,0.00016321,2]
[366188858,1750104661965,-506.11,0.00016321,2]
[366188859,1750104661975,-490.0,0.00016321,2]
[366188860,1750104661985,-490.0,0.00016321,2]
[366188861,1750104661994,-618.0,0.00016321,2]
[366188862,1750104662004,-601.49,0.00016321,2]
[366188863,1750104662013,-490.0,0.00016321,2]
[366188864,1750104662023,-490.0,0.00016321,2]
[366188865,1750104662033,-857.07,0.00016321,2]
[366188866,1750104662043,-621.34,0.00016321,2]
[366188867,1750104662053,-586.62,0.00016321,2]
[366188868,1750104662063,-689.37,0.00016321,2]
[366188869,1750104662072,-490.0,0.00016321,2]
[366188870,1750104662082,-494.88,0.00016321,2]
[366188871,1750104662093,-490.0,0.00016321,2]
[366188872,1750104662103,-636.95,0.00016321,2]
[366188873,1750104662112,-151.0,0.00016321,2]
[366188874,1750104662122,-490.0,0.00016321,2]
[366188875,1750104662131,-490.0,0.00016321,2]
[366188876,1750104662142,-490.0,0.00016321,2]
[366188877,1750104662151,-490.0,0.00016321,2]
[366188878,1750104662161,-711.91,0.00016321,2]
[366188879,1750104662171,-490.0,0.00016321,2]
[366188880,1750104662180,-707.95,0.00016321,2]
[366188881,1750104662190,-490.0,0.00016321,2]
[366188882,1750104662200,-490.0,0.00016321,2]
[366188883,1750104662209,-490.0,0.00016321,2]
[366188884,1750104662219,-151.0,0.00016321,2]
[366188885,1750104662228,-151.0,0.00016321,2]
[366188886,1750104662238,-565.53,0.00016321,2]
[366188887,1750104662247,-872.23,0.00016321,2]
[366188888,1750104662257,-490.0,0.00016321,2]
[366188889,1750104662266,-519.76,0.00016321,2]
[366188890,1750104662276,-367.52180686,0.00016321,2]
[366188891,1750104662286,-490.0,0.00016321,2]
[366188892,1750104662296,-516.15,0.00016321,2]
[366188893,1750104662305,-938.64,0.00016321,2]
[366188894,1750104662315,-490.0,0.00016321,2]
[366188895,1750104662324,-844.56,0.00016321,2]
[366188896,1750104662334,-1137.0,0.00016321,2]
[366188897,1750104662344,-490.0,0.00016321,2]
[366188898,1750104662354,-7450.49,0.00016321,2]
[366188899,1750104662364,-640.62,0.00016321,2]
[366188900,1750104662374,-1874.42,0.00016321,2]
[366188901,1750104662383,-635.92,0.00016321,2]
[366188902,1750104662396,-927.76,0.00016321,2]
[366188903,1750104662407,-741.8,0.00016321,2]
[366188904,1750104662417,-816.34,0.00016321,2]
[366188905,1750104662427,-846.17,0.00016321,2]
[366188906,1750104662437,-756.05,0.00016321,2]
[366188907,1750104662447,-829.01,0.00016321,2]
[366188908,1750104662456,-490.0,0.00016321,2]
[366188909,1750104662466,-1597.18,0.00016321,2]
[366188910,1750104662475,-151.0,0.00016321,2]
[366188911,1750104662485,-1713.39,0.00016321,2]
[366188912,1750104662496,-490.0,0.00016321,2]
[366188913,1750104662506,-490.0,0.00016321,2]
[366188914,1750104662516,-490.0,0.00016321,2]
[366188915,1750104662526,-490.0,0.00016321,2]
[366188916,1750104662536,-490.0,0.00016321,2]
[366188917,1750104662546,-763.34,0.00016321,2]
[366188918,1750104662556,-690.44,0.00016321,2]
[366188919,1750104662567,-490.0,0.00016321,2]
[366188920,1750104662576,-566.59239502,0.00016321,2]
[366188921,1750104662587,-1198.82,0.00016321,2]
[366188922,1750104662597,-491.05,0.00016321,2]
[366188923,1750104662607,-522.17,0.00016321,2]
[366188924,1750104662616,-501.49,0.00016321,2]
[366188925,1750104662627,-643.68,0.00016321,2]
[366188926,1750104662637,-490.0,0.00016321,2]
[366188927,1750104662650,-491.83,0.00016321,2]
[366188928,1750104662660,-490.0,0.00016321,2]
[366188929,1750104662670,-598.64,0.00016321,2]
[366188930,1750104662680,-490.0,0.00016321,2]
[366188931,1750104662690,-490.0,0.00016321,2]
[366188932,1750104662700,-490.0,0.00016321,2]
[366188933,1750104662710,-490.0,0.00016321,2]
[366188934,1750104662720,-939.23,0.00016321,2]
[366188935,1750104662729,-514.77,0.00016321,2]
[366188936,1750104662740,-1481.01,0.00016321,2]
[366188937,1750104662751,-574.31,0.00016321,2]
[366188938,1750104662761,-490.0,0.00016321,2]
[366188939,1750104663093,-563.82,0.00016321,2]
[366188940,1750104663121,-1940.92,0.00016321,2]
[366188941,1750104663131,-151.0,0.00016321,2]
[366188942,1750104663142,-490.0,0.00016321,2]
[366188943,1750104663151,-490.0,0.00016321,2]
[366188944,1750104663162,-490.0,0.00016321,2]
[366188945,1750104663172,-3585.03,0.00016321,2]
[366188946,1750104663182,-151.0,0.00016321,2]
[366188947,1750104663192,-151.0,0.00016321,2]
[366188948,1750104663203,-490.0,0.00016321,2]
[366188949,1750104663212,-490.0,0.00016321,2]
[366188950,1750104663222,-236.337295,0.00016321,2]
[366188951,1750104663232,-490.0,0.00016321,2]
[366188952,1750104663242,-151.0,0.00016321,2]
[366188953,1750104663252,-490.0,0.00016321,2]
[366188954,1750104663262,-1195.37,0.00016321,2]
[366188955,1750104663273,-490.0,0.00016321,2]
[366188956,1750104663282,-490.0,0.00016321,2]
[366188957,1750104663292,-3486.61,0.00016321,2]
[366188958,1750104663302,-490.0,0.00016321,2]
[366188959,1750104663311,-490.0,0.00016321,2]
[366188960,1750104663322,-576.66,0.00016321,2]
[366188961,1750104663331,-490.0,0.00016321,2]
[366188962,1750104663341,-1539.45,0.00016321,2]
[366188963,1750104663351,-490.0,0.00016321,2]
[366188964,1750104663360,-490.0,0.00016321,2]
[366188965,1750104663370,-8919.71,0.00016321,2]
[366188966,1750104663380,-490.0,0.00016321,2]
[366188967,1750104663389,-490.0,0.00016321,2]
[366188968,1750104663402,-490.0,0.00016321,2]
[366188969,1750104663412,-2373.98,0.00016321,2]
[366188970,1750104663422,-490.0,0.00016321,2]
[366188971,1750104663432,-668.88,0.00016321,2]
[366188972,1750104663442,-490.0,0.00016321,2]
[366188973,1750104663452,-935.48,0.00016321,2]
[366188974,1750104663462,-151.0,0.00016321,2]
[366188975,1750104663471,-768.66,0.00016321,2]
[366188976,1750104663481,-490.0,0.00016321,2]
[366188977,1750104663490,-1265.71,0.00016321,2]
[366188978,1750104663500,-799.33,0.00016321,2]
[366188979,1750104663509,-151.0,0.00016321,2]
[366188980,1750104663519,-680.87,0.00016321,2]
[366188981,1750104663529,-490.0,0.00016321,2]
[366188982,1750104663539,-490.0,0.00016321,2]
[366188983,1750104663550,-490.0,0.00016321,2]
[366188984,1750104663560,-984.32,0.00016321,2]
[366188985,1750104663571,-490.0,0.00016321,2]
[366188986,1750104663581,-515.93,0.00016321,2]
[366188987,1750104663591,-1507.29,0.00016321,2]
[366188988,1750104663602,-940.17,0.00016321,2]
[366188989,1750104663612,-490.0,0.00016321,2]
[366188990,1750104663623,-490.0,0.00016321,2]
[366188991,1750104663633,-490.0,0.00016321,2]
[366188992,1750104663644,-594.65,0.00016321,2]
[366188993,1750104663655,-574.72,0.00016321,2]
[366188994,1750104663665,-1606.7,0.00016321,2]
[366188995,1750104663676,-7755.07,0.00016321,2]
[366188996,1750104663686,-490.0,0.00016321,2]
[366188997,1750104663697,-490.0,0.00016321,2]
[366188998,1750104663707,-490.0,0.00016321,2]
[366188999,1750104663717,-516.77,0.00016321,2]
[366189000,1750104663727,-490.0,0.00016321,2]
[366189001,1750104663737,-2924.91,0.00016321,2]
[366189002,1750104663747,-1557.21,0.00016321,2]
[366189003,1750104663757,-2844.63,0.00016321,2]
[366189004,1750104663768,-490.0,0.00016321,2]
[366189005,1750104663778,-576.19,0.00016321,2]
[366189006,1750104663787,-490.0,0.00016321,2]
[366189007,1750104663797,-490.0,0.00016321,2]
[366189008,1750104663807,-2142.72,0.00016321,2]
[366189009,1750104663820,-517.99,0.00016321,2]
[366189010,1750104663831,-490.0,0.00016321,2]
[366189011,1750104663841,-3747.5,0.00016321,2]
[366189012,1750104663851,-5472.19,0.00016321,2]
[366189013,1750104663861,-490.0,0.00016321,2]
[366189014,1750104663871,-3236.01,0.00016321,2]
[366189015,1750104663881,-1372.71,0.00016321,2]
[366189016,1750104663893,-490.0,0.00016321,2]
[366189017,1750104663903,-614.91,0.00016321,2]
[366189018,1750104663913,-376.0,0.00016325,2]
[366189019,1750104663922,-151.30590679,0.00016328,2]
[366189020,1750104663932,-359.24586323,0.00016374,2]
[366189021,1750104663942,-490.0,0.00016374,2]
[366189022,1750104663952,-203.86553532,0.00016374,2]
[366189023,1750104663962,-490.0,0.00016374,2]
[366189024,1750104663971,-490.0,0.00016374,2]
[366189025,1750104663981,-490.0,0.00016374,2]
[366189026,1750104663990,-490.0,0.00016374,2]
[366189027,1750104664000,-245.0,0.00016381,2]
[366189028,1750104664010,-151.0,0.00016381,2]
[366189029,1750104664020,-228.034,0.00016381,2]
[366189030,1750104664030,-2899.369,0.000164,2]
[366189031,1750104664040,-2000.0,0.00016409,2]
[366189032,1750104664050,-500.0,0.00016409,2]
[366189033,1750104664060,-200.0,0.00016409,2]
[366189034,1750104664070,-590.0,0.00016412,2]
[366189035,1750104664080,-558.0,0.00016412,2]
[366189036,1750104664090,-2003.0,0.00016412,2]
[366189037,1750104664100,-1277.0,0.00016412,2]
[366189038,1750104664110,-928.0,0.00016412,2]
[366189039,1750104664120,-1674.0,0.00016412,2]
[366189040,1750104664129,-1160.0,0.00016413,2]
[366189041,1750104664139,-7112.0,0.00016413,2]
[366189042,1750104664151,-155.0,0.00016413,2]
[366189043,1750104664162,-4090.0,0.00016413,2]
[366189044,1750104664172,-854.0,0.00016413,2]
[366189045,1750104664182,-150.221,0.00016431,2]
[366189046,1750104664193,-286.896,0.00016431,2]
[366189047,1750104664203,-162.45031757,0.00016431,2]
[366189048,1750104664214,-300.0,0.00016438,2]
[366189049,1750104664224,-300.0,0.00016438,2]
[366189050,1750104664234,-300.0,0.00016438,2]
[366189051,1750104664244,-300.0,0.00016438,2]
[366189052,1750104664255,-253.11042469,0.00016438,2]
[366189053,1750104664266,-593.09526336,0.00016438,2]
[366189054,1750104664276,-500.0,0.00016438,2]
[366189055,1750104664286,-500.0,0.00016438,2]
[366189056,1750104664296,-500.0,0.00016438,2]
[366189057,1750104664306,-500.0,0.00016438,2]
[366189058,1750104664316,-500.0,0.00016438,2]
[366189059,1750104664326,-500.0,0.00016438,2]
[366189060,1750104664336,-500.0,0.00016438,2]
[366189061,1750104664346,-500.0,0.00016438,2]
[366189062,1750104664357,-500.0,0.00016438,2]
[366189063,1750104664367,-500.0,0.00016438,2]
[366189064,1750104664376,-500.0,0.00016438,2]
[366189065,1750104664386,-550.19443996,0.00016438,2]
[366189066,1750104664397,-500.0,0.00016438,2]
[366189067,1750104664406,-433.40640208,0.00016438,2]
[366189068,1750104664416,-262.0,0.00016438,2]
[366189069,1750104664426,-304.07163322,0.00016438,2]
[366189070,1750104664436,-227.79938221,0.00016438,2]
[366189071,1750104664446,-630.0,0.00016438,2]
[366189072,1750104664456,-150.0,0.00016438,2]
[366189073,1750104664467,-4603.81558669,0.00016454,2]
[366189074,1750104664476,-868.48676193,0.00016456,2]